bitfinex/quotes_ETHUSD_20250605
["timestamp","ask_amount","ask_price","bid_price","bid_amount"]
[1749166383052,9.7743326,2425.6,2425.5,20.12286126]
[1749166383593,9.7743326,2425.6,2425.5,16.0]
[1749166383753,10.15638285,2425.6,2425.5,20.12286126]
[1749166383948,2.8403326,2425.6,2425.5,20.12286126]
[1749166384363,9.7733326,2425.6,2425.5,20.12286126]
[1749166384586,8.795,2425.6,2425.5,16.0]
[1749166384879,11.5446326,2425.6,2425.5,16.0]
[1749166385082,12.3231326,2425.6,2425.5,16.0]
[1749166385252,12.70491824,2425.6,2425.5,16.0]
[1749166385455,15.18091824,2425.6,2424.8,0.6183]
[1749166385750,8.2535731,2425.4,2424.5,0.6183]
[1749166385978,0.7785,2425.0,2424.5,0.6183]
[1749166386211,9.7733326,2424.9,2424.7,16.0]
[1749166386561,9.7733326,2424.9,2424.7,4.12421936]
[1749166386882,9.7733326,2424.9,2424.8,20.12405146]
[1749166387183,7.9103326,2424.9,2424.8,20.12405146]
[1749166387379,8.71213326,2424.9,2423.9,0.6183]
[1749166387579,0.9783326,2424.8,2424.4,4.12463988]
[1749166387779,0.9783326,2424.7,2424.4,4.1247164]
[1749166387983,6.932,2424.6,2424.5,16.0]
[1749166388147,6.932,2424.6,2424.5,4.12456176]
[1749166388695,6.932,2424.6,2424.4,20.12467291]
[1749166388871,7.9103326,2424.6,2424.4,20.12467291]
[1749166389075,7.9103326,2424.6,2424.1,4.12515713]
[1749166389076,6.932,2424.6,2424.1,4.12515713]
[1749166389251,0.7692,2424.4,2424.0,4.12530971]
[1749166389452,7.9103326,2424.3,2424.0,4.12530971]
[1749166389778,0.9783326,2424.2,2424.1,16.0]
[1749166389975,7.9103326,2424.3,2424.1,16.0]
[1749166390490,0.9783326,2424.2,2423.9,4.12550075]
[1749166390794,0.9783326,2424.2,2424.1,16.0]
[1749166392495,6.932,2424.3,2424.1,16.0]
[1749166392496,7.9103326,2424.3,2424.2,16.0]
[1749166392861,7.9103326,2424.3,2424.0,20.1253278]
[1749166393064,0.9783326,2424.2,2424.0,20.1253278]
[1749166393262,7.9103326,2424.3,2424.2,16.0]
[1749166393571,7.9103326,2424.3,2424.0,20.12532844]
[1749166393775,0.9783326,2424.2,2424.0,20.12532844]
[1749166393951,7.9103326,2424.3,2424.0,20.12532844]
[1749166394171,7.9103326,2424.3,2424.2,16.0]
[1749166394370,7.90946014,2424.3,2424.2,16.0]
[1749166394685,7.90946014,2424.3,2424.0,20.12534204]
[1749166394864,0.97746014,2424.2,2424.0,20.12534204]
[1749166395480,6.932,2424.1,2424.0,20.12534204]
[1749166400365,5.1072,2424.4,2423.9,4.12557859]
[1749166400366,0.97746014,2424.3,2424.2,20.12507218]
[1749166400676,0.97746014,2424.3,2424.2,16.0]
[1749166400677,6.932,2424.3,2424.2,16.0]
[1749166401060,6.932,2424.3,2424.2,20.12507218]
[1749166401258,7.90926947,2424.3,2424.2,20.12507218]
[1749166401657,7.90926947,2424.3,2424.2,16.0]
[1749166401862,12.13159642,2424.3,2423.8,4.12573642]
[1749166402164,0.97726947,2424.2,2423.8,4.12573642]
[1749166402366,0.97726947,2424.1,2423.9,16.0]
[1749166402575,0.3816045,2424.2,2423.9,16.0]
[1749166402576,7.90926947,2424.0,2423.9,16.0]
[1749166402765,6.932,2424.0,2423.9,16.0]
[1749166403094,7.90926947,2424.0,2423.9,16.0]
[1749166404191,7.90926947,2424.0,2423.5,4.12615077]
[1749166404489,0.8247,2423.6,2422.7,4.12751628]
[1749166404690,0.8247,2423.4,2422.6,0.6183]
[1749166404889,0.8247,2423.4,2423.2,4.12677451]
[1749166404890,0.97726947,2423.3,2423.2,4.12677451]
[1749166405121,6.931,2423.3,2423.2,20.12677451]
[1749166405395,6.931,2423.3,2423.2,4.12677451]
[1749166405600,6.931,2423.3,2423.2,20.12677451]
[1749166405961,6.931,2423.3,2423.2,20.67677451]
[1749166406496,6.931,2423.3,2423.2,16.0]
[1749166406661,7.79252958,2423.3,2422.8,0.6183]
[1749166406862,7.79252958,2423.3,2423.0,4.12701782]
[1749166407100,8.76935218,2423.3,2423.1,16.0]
[1749166407397,7.9078226,2423.3,2423.0,4.12701782]
[1749166407896,6.931,2423.3,2423.1,16.0]
[1749166408386,6.931,2423.3,2422.6,0.6183]
[1749166408562,6.931,2423.3,2422.9,4.12719869]
[1749166408763,8.17365728,2423.3,2422.9,4.12719869]
[1749166408995,8.17365728,2423.3,2423.0,20.12710069]
[1749166409190,8.17365728,2423.3,2423.2,16.0]
[1749166409401,6.931,2423.3,2423.2,16.0]
[1749166410496,6.932,2423.3,2422.8,0.55]
[1749166410836,6.932,2423.3,2423.2,4.1267472]
[1749166411735,4.339,2423.6,2423.2,20.1267472]
[1749166411934,6.932,2423.5,2423.3,16.0]
[1749166412838,8.35404728,2423.5,2423.1,16.0]
[1749166413022,0.7813,2423.4,2423.1,16.0]
[1749166413338,2.476,2423.3,2423.1,20.12690763]
[1749166413541,3.45149902,2423.6,2423.4,4.12643393]
[1749166413740,0.97549902,2424.2,2423.9,20.12558273]
[1749166413911,1.86,2424.4,2424.3,16.0]
[1749166414112,8.792,2424.4,2424.3,20.12490203]
[1749166414305,1.86,2424.4,2424.3,20.12490203]
[1749166414501,1.63576569,2425.0,2424.6,4.12439165]
[1749166414502,0.97549902,2424.7,2424.6,4.12439165]
[1749166414727,0.97549902,2424.8,2424.7,16.0]
[1749166414928,7.90749902,2424.8,2424.7,16.0]
[1749166415198,8.56026786,2424.8,2424.1,0.6183]
[1749166415403,0.97549902,2424.7,2424.4,16.0]
[1749166415740,3.45149902,2424.6,2424.5,16.0]
[1749166415900,2.476,2424.6,2424.5,20.12456176]
[1749166416105,3.45149902,2424.6,2424.5,20.12456176]
[1749166416305,2.476,2424.6,2424.5,20.12456176]
[1749166416506,3.45149902,2424.6,2424.5,20.12456176]
[1749166416707,2.476,2424.6,2424.5,20.12456176]
[1749166416902,10.38349902,2424.6,2424.5,20.12456176]
[1749166417122,9.408,2424.6,2424.5,20.12456176]
[1749166417539,3.45149902,2424.6,2424.5,20.12456176]
[1749166417732,9.406,2424.6,2424.5,20.12456176]
[1749166417931,9.406,2424.6,2424.5,16.0]
[1749166418119,11.32379508,2424.6,2424.5,16.0]
[1749166418304,12.4734149,2424.6,2424.5,16.0]
[1749166418509,9.9974149,2424.6,2424.5,16.0]
[1749166418708,9.61569508,2424.6,2424.5,16.0]
[1749166419149,9.99736761,2424.6,2424.5,16.0]
[1749166419310,9.05676687,2424.6,2424.5,16.0]
[1749166419639,8.67509508,2424.6,2424.5,16.0]
[1749166421141,9.05649189,2424.6,2424.5,16.0]
[1749166421654,8.67509508,2424.6,2424.5,16.0]
[1749166422141,11.15109508,2424.6,2424.0,0.09]
[1749166422457,3.60554697,2424.5,2424.1,16.0]
[1749166422755,0.97719508,2424.4,2424.1,16.0]
[1749166423045,7.90619508,2424.3,2424.2,4.12507218]
[1749166423235,6.929,2424.3,2424.2,20.12507218]
[1749166426547,0.7679,2424.6,2424.5,4.12456176]
[1749166426719,8.67309508,2424.6,2424.5,20.12456176]
[1749166427050,7.6959,2424.6,2424.5,20.12456176]
[1749166427218,8.67309508,2424.6,2424.5,20.12456176]
[1749166427412,7.6959,2424.6,2424.5,20.12456176]
[1749166427614,8.67309508,2424.6,2424.5,20.12456176]
[1749166427823,7.6959,2424.6,2424.5,20.12456176]
[1749166428026,8.67309508,2424.6,2424.5,20.12456176]
[1749166428226,7.6959,2424.6,2424.5,20.12456176]
[1749166428422,11.14909508,2424.6,2424.5,16.0]
[1749166428652,10.1719,2424.6,2424.5,16.0]
[1749166428835,11.14909508,2424.6,2424.5,20.12456176]
[1749166429042,10.1719,2424.6,2424.5,20.12456176]
[1749166429237,4.22109508,2424.6,2424.5,20.12456176]
[1749166429462,12.0319,2424.6,2424.5,16.0]
[1749166429763,13.00909508,2424.6,2424.5,16.0]
[1749166429949,12.0319,2424.6,2424.5,16.0]
[1749166430262,13.00909508,2424.6,2424.5,16.0]
[1749166430461,12.0319,2424.6,2424.5,20.12456176]
[1749166430661,13.00565625,2424.6,2424.5,16.0]
[1749166430864,12.02846117,2424.6,2424.5,16.0]
[1749166431057,13.00565625,2424.6,2424.5,16.0]
[1749166431257,12.02846117,2424.6,2424.5,16.0]
[1749166431443,13.00565625,2424.6,2424.5,16.0]
[1749166431767,12.02846117,2424.6,2424.5,16.0]
[1749166431933,13.00565625,2424.6,2424.5,16.0]
[1749166432134,12.02846117,2424.6,2424.5,16.0]
[1749166432332,13.00565625,2424.6,2424.5,20.12456176]
[1749166432535,12.02846117,2424.6,2424.5,16.0]
[1749166432735,13.00565625,2424.6,2424.5,16.0]
[1749166432935,12.02846117,2424.6,2424.5,16.0]
[1749166433233,13.00565625,2424.6,2424.5,16.0]
[1749166433433,12.02846117,2424.6,2424.5,16.0]
[1749166433662,6.07765625,2424.6,2424.5,16.0]
[1749166433846,12.02746117,2424.6,2424.5,16.0]
[1749166434230,13.00465625,2424.6,2424.5,16.0]
[1749166434431,12.02746117,2424.6,2424.5,16.0]
[1749166434657,13.00465625,2424.6,2424.5,16.0]
[1749166434859,12.02746117,2424.6,2424.5,16.0]
[1749166435032,13.00465625,2424.6,2424.5,16.0]
[1749166435232,12.02746117,2424.6,2424.5,16.0]
[1749166435466,13.00465625,2424.6,2424.5,16.0]
[1749166435673,12.02746117,2424.6,2424.5,16.0]
[1749166435866,13.00465625,2424.6,2424.5,16.0]
[1749166436070,12.02746117,2424.6,2424.5,16.0]
[1749166436234,12.02746117,2424.6,2424.0,0.09]
[1749166436235,14.52609002,2424.6,2424.0,0.09]
[1749166436436,2.476,2424.4,2424.0,0.09]
[1749166436646,6.926,2424.3,2424.2,16.0]
[1749166436832,6.926,2424.3,2424.0,20.21538482]
[1749166437062,7.90319508,2424.3,2424.0,20.21538482]
[1749166437639,0.97719508,2424.2,2424.0,20.21538482]
[1749166437873,6.926,2424.1,2424.0,20.21538482]
[1749166438434,10.235,2424.1,2424.0,0.09]
[1749166438745,12.66284923,2424.1,2424.0,0.09]
[1749166439365,11.21166543,2424.1,2424.0,0.09]
[1749166440171,11.21166543,2424.1,2424.0,16.09]
[1749166440385,10.76044391,2424.1,2424.0,16.09]
[1749166440570,10.37866543,2424.1,2424.0,16.0]
[1749166440738,10.37866543,2424.1,2424.0,20.12541254]
[1749166441078,11.14228687,2424.1,2424.0,16.0]
[1749166441254,10.76050901,2424.1,2424.0,16.0]
[1749166441781,10.76051385,2424.1,2424.0,16.0]
[1749166441941,10.760519,2424.1,2424.0,16.0]
[1749166442137,10.76052043,2424.1,2424.0,16.0]
[1749166442364,10.76052265,2424.1,2424.0,16.0]
[1749166442565,11.97989759,2424.1,2424.0,20.12541254]
[1749166442762,10.37866543,2424.1,2424.0,20.12541254]
[1749166442977,10.76058324,2424.1,2424.0,20.12541254]
[1749166443147,12.59102744,2424.1,2424.0,20.12541254]
[1749166443487,11.37404247,2424.1,2424.0,20.12541254]
[1749166443660,11.37404247,2424.1,2424.0,16.0]
[1749166443855,10.6083676,2424.1,2424.0,16.0]
[1749166444075,11.37398613,2424.1,2424.0,16.0]
[1749166444259,11.37395792,2424.1,2424.0,20.12541254]
[1749166444462,11.3738604,2424.1,2424.0,20.12541254]
[1749166444873,10.60833834,2424.1,2424.0,20.12541254]
[1749166445072,11.37376671,2424.1,2424.0,16.0]
[1749166445283,13.00957725,2424.1,2424.0,16.0]
[1749166445445,10.76139669,2424.1,2424.0,16.0]
[1749166445649,12.21613382,2424.1,2424.0,16.0]
[1749166445897,11.14431094,2424.1,2424.0,16.0]
[1749166446191,1.35941588,2424.1,2424.0,20.12541254]
[1749166446345,8.89680384,2424.1,2424.0,20.74711254]
[1749166446544,8.51405953,2424.1,2424.0,20.74711254]
[1749166446745,10.12170054,2424.1,2424.0,20.74711254]
[1749166446965,9.89207683,2424.1,2424.0,20.74711254]
[1749166447184,9.50925007,2424.1,2424.0,20.74711254]
[1749166447389,0.97666543,2424.1,2424.0,20.74711254]
[1749166447557,8.28464346,2424.1,2424.0,20.74711254]
[1749166447756,8.28464671,2424.1,2424.0,20.74711254]
[1749166447960,8.28463682,2424.1,2424.0,20.74711254]
[1749166448163,7.90166543,2424.1,2424.0,20.74711254]
[1749166448348,8.28462665,2424.1,2424.0,20.74711254]
[1749166448545,8.6675833,2424.1,2424.0,20.74711254]
[1749166448777,7.90166543,2424.1,2424.0,20.74711254]
[1749166449153,8.28460076,2424.1,2424.0,20.74711254]
[1749166449378,8.6674634,2424.1,2424.0,20.74711254]
[1749166450287,7.90166543,2424.1,2424.0,20.74711254]
[1749166450768,8.66745849,2424.1,2424.0,20.74711254]
[1749166450974,8.2845642,2424.1,2424.0,20.74711254]
[1749166451175,7.90166543,2424.1,2424.0,20.74711254]
[1749166452287,8.66761206,2424.1,2424.0,20.12541254]
[1749166452456,10.02508977,2424.1,2424.0,16.0]
[1749166452788,3.19798491,2424.1,2424.0,20.12541254]
[1749166452955,7.90066543,2424.1,2424.0,20.67541254]
[1749166453286,1.22554903,2424.5,2424.4,5.29643189]
[1749166453449,1.22554903,2424.8,2424.7,4.12422155]
[1749166453650,9.3608879,2424.8,2424.7,20.12422155]
[1749166453849,9.89756751,2424.8,2424.7,20.12422155]
[1749166454050,10.1275668,2424.8,2424.7,20.12422155]
[1749166454254,8.67201848,2424.8,2424.7,20.12422155]
[1749166454450,8.90202271,2424.8,2424.7,20.12422155]
[1749166454989,7.90534566,2424.8,2424.7,20.12422155]
[1749166455190,8.5186434,2424.8,2424.7,20.12422155]
[1749166455358,7.90534566,2424.8,2424.7,20.12422155]
[1749166455690,8.67196472,2424.8,2424.7,20.12422155]
[1749166455984,8.67096472,2424.8,2424.7,20.12422155]
[1749166456185,7.90434566,2424.8,2424.7,20.12422155]
[1749166456385,8.6701399,2424.8,2424.7,20.12422155]
[1749166456594,8.66995355,2424.8,2424.7,20.12422155]
[1749166456787,8.28604853,2424.8,2424.7,20.12422155]
[1749166456992,8.66860785,2424.8,2424.7,20.12422155]
[1749166457197,8.66860017,2424.8,2424.7,20.12422155]
[1749166457371,8.66817031,2424.8,2424.7,20.12422155]
[1749166457575,8.66817168,2424.8,2424.7,20.12422155]
[1749166457870,8.66817407,2424.8,2424.7,20.12422155]
[1749166458072,0.76485961,2424.9,2424.7,21.29592155]
[1749166458385,1.45503415,2425.4,2425.1,16.0]
[1749166458691,1.857,2425.5,2425.2,4.12337126]
[1749166458692,8.28352211,2425.3,2425.2,4.12337126]
[1749166458890,8.66601119,2425.3,2425.2,20.12337126]
[1749166459192,8.66601262,2425.3,2425.2,20.12337126]
[1749166459393,7.90102574,2425.3,2425.2,16.0]
[1749166459693,15.73614134,2425.3,2425.2,16.0]
[1749166459903,0.7513,2425.2,2424.5,4.12446747]
[1749166460063,0.7513,2424.8,2424.6,16.0]
[1749166460258,0.7513,2424.8,2424.4,4.12469786]
[1749166460259,7.90002574,2424.7,2424.4,4.12469786]
[1749166460465,0.97811715,2424.6,2424.3,4.12478466]
[1749166460699,7.89911715,2424.5,2423.5,4.12612003]
[1749166460896,1.72941715,2424.4,2423.7,0.6217]
[1749166461069,8.28082502,2424.3,2423.8,4.12559818]
[1749166461270,1.35976947,2424.2,2423.9,4.12548199]
[1749166461569,0.97811715,2424.1,2423.7,4.12586572]
[1749166461769,7.89911715,2424.0,2423.7,16.0]
[1749166461993,1.72941715,2423.9,2423.7,20.12589172]
[1749166462197,0.97811715,2423.8,2423.7,20.12589172]
[1749166462501,0.97811715,2423.8,2423.7,4.12589172]
[1749166462657,0.97811715,2423.8,2423.4,4.12639012]
[1749166462860,7.89911715,2423.7,2423.6,4.12605696]
[1749166463098,7.89911715,2423.7,2423.6,20.12605696]
[1749166464265,7.89911715,2423.7,2423.6,4.12605696]
[1749166464699,6.921,2423.7,2423.6,20.12605696]
[1749166465413,7.89803896,2423.7,2423.6,20.12605696]
[1749166465792,9.98575533,2423.7,2423.1,4.12692048]
[1749166465994,1.22077564,2423.5,2422.6,0.6217]
[1749166466195,1.22077564,2423.5,2423.0,4.12698605]
[1749166466196,7.89803896,2423.4,2423.0,4.12698605]
[1749166466373,0.97703896,2423.3,2423.1,16.0]
[1749166466577,1.854,2423.2,2423.1,4.12694482]
[1749166466881,1.854,2423.2,2423.1,20.12694482]
[1749166467084,2.83009952,2423.2,2423.1,20.12694482]
[1749166467283,0.8247,2423.1,2422.7,4.1276262]
[1749166467486,7.89709952,2423.0,2422.7,4.12762458]
[1749166467671,7.89709952,2423.0,2422.9,20.12728548]
[1749166467871,7.89709952,2423.0,2422.9,4.12728548]
[1749166468310,6.921,2423.0,2422.9,4.12728548]
[1749166468885,6.921,2423.0,2422.9,20.12728548]
[1749166469074,3.64319952,2423.4,2423.2,16.0]
[1749166469275,7.89709952,2423.3,2423.0,20.12705042]
[1749166469606,7.89532158,2423.3,2423.0,20.12705042]
[1749166469911,6.921,2423.3,2423.0,20.12700285]
[1749166470206,6.921,2423.3,2423.2,16.0]
[1749166471312,6.921,2423.3,2423.2,20.12677451]
[1749166471514,6.921,2423.3,2423.2,16.0]
[1749166471674,7.97724216,2423.3,2423.0,20.12704821]
[1749166472004,6.921,2423.2,2423.0,20.12704821]
[1749166473077,6.921,2423.2,2423.1,20.12694482]
[1749166473470,6.921,2423.2,2423.1,16.0]
[1749166474316,6.921,2423.2,2423.1,20.12694482]
[1749166474479,6.921,2423.2,2423.1,16.0]
[1749166476297,6.921,2423.2,2423.1,20.12694482]
[1749166477310,1.854,2423.3,2423.2,20.12671063]
[1749166477604,8.775,2423.3,2423.2,20.12671063]
[1749166478681,1.854,2423.3,2423.2,20.12671063]
[1749166478883,8.775,2423.3,2423.2,20.12671063]
[1749166480291,8.775,2423.3,2423.2,16.0]
[1749166480894,8.775,2423.3,2423.2,20.12677451]
[1749166483213,1.854,2423.3,2423.2,20.12677451]
[1749166483517,8.774,2423.3,2423.2,20.12677451]
[1749166485188,8.774,2423.3,2423.2,16.0]
[1749166485619,8.774,2423.3,2423.2,20.12677451]
[1749166486706,8.774,2423.3,2423.2,16.0]
[1749166486912,10.31085238,2423.3,2423.2,16.0]
[1749166487416,1.53685238,2423.3,2423.2,16.0]
[1749166487795,3.45032158,2423.4,2423.3,16.0]
[1749166488002,3.45032158,2423.4,2423.1,16.0]
[1749166488413,0.97432158,2423.3,2422.9,20.12720106]
[1749166488624,6.37530143,2423.1,2422.4,4.12813738]
[1749166488825,8.89342388,2423.0,2422.6,4.12768197]
[1749166489122,0.97432158,2422.9,2422.7,16.0]
[1749166489294,1.96545568,2422.8,2422.7,16.0]
[1749166489494,1.73627277,2422.8,2422.7,16.0]
[1749166489791,1.73627277,2422.8,2422.7,4.1276262]
[1749166489792,9.063694,2422.8,2422.7,4.1276262]
[1749166489991,3.2634,2422.3,2421.5,0.6217]
[1749166490196,0.7874,2421.9,2420.9,0.6217]
[1749166490403,7.89332158,2421.8,2421.5,4.12956508]
[1749166490617,6.919,2421.8,2421.5,4.12954006]
[1749166490936,8.27578891,2421.7,2421.6,4.12950115]
[1749166491154,7.30077274,2421.7,2421.6,4.12950115]
[1749166491305,0.38177274,2421.8,2421.7,4.12933063]
[1749166491498,6.919,2421.8,2421.7,4.12933063]
[1749166491707,7.8936917,2421.8,2421.7,4.12933063]
[1749166492006,6.919,2421.8,2421.7,4.12933063]
[1749166492208,0.97428539,2421.9,2421.8,20.12916012]
[1749166492613,8.27504887,2421.9,2421.8,20.12916012]
[1749166492821,7.89428539,2421.9,2421.8,20.12916012]
[1749166493027,6.92,2421.9,2421.8,20.12916012]
[1749166493199,7.89428539,2421.9,2421.8,20.12916012]
[1749166493395,6.92,2421.9,2421.8,20.12916012]
[1749166494729,7.89355971,2421.9,2421.8,20.12916012]
[1749166494917,6.92,2421.9,2421.8,20.12916012]
[1749166495842,7.89334824,2421.9,2421.8,20.12916012]
[1749166496009,6.921,2421.9,2421.8,20.12916012]
[1749166496531,6.921,2421.9,2421.8,20.12911319]
[1749166496909,6.921,2421.9,2421.8,20.12916012]
[1749166498305,0.97248777,2422.2,2422.0,16.0]
[1749166498527,7.89348777,2422.1,2422.0,4.12881915]
[1749166498718,7.89348777,2422.1,2422.0,20.12881915]
[1749166498920,7.89335589,2422.1,2422.0,16.0]
[1749166500917,8.88297597,2422.1,2422.0,16.0]
[1749166501842,11.35897597,2422.1,2422.0,16.0]
[1749166502032,13.70716977,2422.1,2422.0,16.0]
[1749166503052,13.70693583,2422.1,2422.0,16.0]
[1749166503254,13.70693169,2422.1,2422.0,16.0]
[1749166503457,13.70693183,2422.1,2422.0,16.0]
[1749166504158,14.0864478,2422.1,2422.0,16.0]
[1749166504453,14.08638654,2422.1,2422.0,16.0]
[1749166504854,14.46608591,2422.1,2422.0,16.0]
[1749166505060,6.78593183,2422.1,2422.0,16.0]
[1749166505236,12.71731175,2422.1,2422.0,16.0]
[1749166505622,2.56731175,2422.1,2422.0,16.0]
[1749166505827,1.35186689,2422.1,2422.0,20.67881915]
[1749166506055,7.300511,2422.1,2422.0,20.67881915]
[1749166506457,7.300511,2422.1,2422.0,16.0]
[1749166506458,8.27286689,2422.1,2422.0,16.0]
[1749166506984,9.18023358,2422.1,2422.0,16.0]
[1749166507140,10.74886689,2422.1,2422.0,16.0]
[1749166507734,11.12834598,2422.1,2422.0,16.0]
[1749166508066,11.12834596,2422.1,2422.0,16.0]
[1749166508221,12.72326033,2422.1,2422.0,16.0]
[1749166508426,14.9877557,2422.1,2422.0,16.0]
[1749166508625,14.60816465,2422.1,2422.0,16.0]
[1749166508855,14.22867101,2422.1,2422.0,16.0]
[1749166509240,14.98783092,2422.1,2422.0,16.0]
[1749166509442,14.98783165,2422.1,2422.0,16.0]
[1749166509965,14.6082564,2422.1,2422.0,16.0]
[1749166510266,14.60834004,2422.1,2422.0,16.0]
[1749166510469,13.77262328,2422.1,2422.0,16.0]
[1749166510774,13.39292834,2422.1,2422.0,16.0]
[1749166510979,13.01222615,2422.1,2422.0,16.0]
[1749166511553,13.771798,2422.1,2422.0,16.0]
[1749166511875,12.34360711,2422.1,2422.0,16.0]
[1749166512172,12.72339306,2422.1,2422.0,16.0]
[1749166512474,10.74786689,2422.1,2422.0,16.0]
[1749166512832,8.6516898,2422.1,2422.0,16.0]
[1749166513065,2.56965956,2422.1,2422.0,20.67881915]
[1749166513269,1.35291036,2422.1,2422.0,20.67881915]
[1749166513538,7.299511,2422.1,2422.0,21.30051915]
[1749166516465,8.2751987,2422.1,2422.0,21.30051915]
[1749166518482,9.03799986,2422.1,2422.0,21.30051915]
[1749166518698,9.0380013,2422.1,2422.0,21.30051915]
[1749166518843,9.0388614,2422.1,2422.0,21.30051915]
[1749166519041,8.2751987,2422.1,2422.0,21.30051915]
[1749166519280,1.73703812,2422.1,2422.0,21.30051915]
[1749166519487,8.2741987,2422.1,2422.0,21.30051915]
[1749166519685,1.3551987,2422.1,2422.0,21.30051915]
[1749166519842,7.298511,2422.1,2422.0,21.30051915]
[1749166520180,8.27613359,2422.1,2422.0,21.30051915]
[1749166520871,7.298511,2422.1,2422.0,21.30051915]
[1749166521075,8.27601057,2422.1,2422.0,21.30051915]
[1749166521374,8.27601057,2422.1,2422.0,20.67881915]
[1749166521738,8.27595818,2422.1,2422.0,20.67881915]
[1749166521943,8.65766209,2422.1,2422.0,20.67881915]
[1749166522164,8.27595818,2422.1,2422.0,20.67881915]
[1749166522370,9.03936334,2422.1,2422.0,20.67881915]
[1749166522579,9.70666364,2422.1,2421.6,0.6217]
[1749166522774,9.70666364,2422.1,2421.4,4.75150945]
[1749166522775,3.90178486,2421.8,2421.4,4.75150945]
[1749166522950,8.65876369,2421.7,2421.6,4.12950115]
[1749166523151,0.97744718,2421.7,2421.6,20.75120115]
[1749166523377,0.379511,2422.1,2422.0,4.67881915]
[1749166523563,8.27500089,2422.1,2422.0,21.30051915]
[1749166523741,7.297511,2422.1,2422.0,21.30051915]
[1749166524676,0.379511,2422.1,2422.0,21.30051915]
[1749166524882,7.297511,2422.1,2422.0,21.30051915]
[1749166526159,7.297511,2422.1,2422.0,23.15251915]
[1749166526975,7.297511,2422.1,2422.0,21.30051915]
[1749166527281,0.379511,2422.1,2422.0,23.15051915]
[1749166527589,7.296511,2422.1,2422.0,23.15051915]
[1749166531767,0.379511,2422.1,2422.0,23.15051915]
[1749166531968,7.295511,2422.1,2422.0,23.15051915]
[1749166532149,7.295511,2422.1,2422.0,21.30051915]
[1749166532386,7.295511,2422.1,2422.0,23.14951915]
[1749166534793,7.295511,2422.1,2422.0,20.12881915]
[1749166535272,7.295511,2422.1,2422.0,20.67881915]
[1749166536906,8.27222343,2422.1,2422.0,16.09]
[1749166537104,8.65358442,2422.1,2422.0,20.21881915]
[1749166537286,8.27222343,2422.1,2422.0,20.76881915]
[1749166537596,2.11892688,2422.1,2422.0,20.76881915]
[1749166537760,8.27122343,2422.1,2422.0,20.76881915]
[1749166538098,1.35622343,2422.1,2422.0,20.76881915]
[1749166538282,0.379511,2422.1,2422.0,21.39051915]
[1749166538803,7.294511,2422.1,2422.0,21.39051915]
[1749166539871,7.294511,2422.1,2422.0,23.23951915]
[1749166541194,7.294511,2422.1,2422.0,21.39051915]
[1749166541434,7.294511,2422.1,2422.0,23.23951915]
[1749166544499,0.379511,2422.1,2422.0,23.23951915]
[1749166544701,0.289511,2422.1,2422.0,31.09951915]
[1749166544940,7.203511,2422.1,2422.0,31.09951915]
[1749166545110,0.22915848,2423.1,2423.0,4.67711514]
[1749166545317,7.8916032,2423.1,2423.0,20.67711514]
[1749166545643,6.914,2423.1,2423.0,20.67711514]
[1749166545825,0.38166446,2423.2,2423.1,20.67694482]
[1749166546027,0.8329,2423.4,2423.3,20.67660421]
[1749166546338,8.72288637,2423.4,2423.3,20.67660421]
[1749166546543,9.7173559,2423.4,2423.3,20.67660421]
[1749166546835,10.09898775,2423.4,2423.3,20.67660421]
[1749166547041,10.32796764,2423.4,2423.3,20.67660421]
[1749166547238,10.32796964,2423.4,2423.3,20.67660421]
[1749166547406,10.09898878,2423.4,2423.3,20.67660421]
[1749166548047,10.09860091,2423.4,2423.3,20.67660421]
[1749166548248,3.18557363,2423.4,2423.3,20.67660421]
[1749166548560,0.8238,2423.6,2423.5,4.12626366]
[1749166548738,9.09279213,2423.6,2423.5,20.12626366]
[1749166548952,9.09279213,2423.6,2422.5,0.6217]
[1749166549112,0.8238,2423.4,2422.5,1.849]
[1749166549418,0.8238,2423.4,2422.4,7.95]
[1749166549419,0.8238,2423.2,2422.8,4.12735519]
[1749166549619,0.7619,2423.0,2422.9,16.55]
[1749166549851,1.73762213,2423.0,2422.9,4.12728548]
[1749166550215,1.73762213,2423.0,2422.9,4.67728548]
[1749166550749,8.64962213,2423.0,2422.9,20.67728548]
[1749166551137,9.03063607,2423.0,2422.9,20.67728548]
[1749166551336,8.64962213,2423.0,2422.9,20.67728548]
[1749166551553,9.03060593,2423.0,2422.9,20.67728548]
[1749166551956,0.8289,2422.9,2421.7,0.6217]
[1749166552170,0.8289,2422.6,2421.9,4.12894483]
[1749166552485,8.26870593,2422.5,2422.4,4.12805003]
[1749166552621,8.2685585,2422.5,2422.4,20.12805003]
[1749166552825,7.88772213,2422.5,2422.4,20.67805003]
[1749166553042,8.26857042,2422.5,2422.4,20.67805003]
[1749166553248,8.97003746,2422.5,2422.4,0.55]
[1749166553557,0.8301,2422.4,2421.5,4.12967169]
[1749166553789,0.8301,2422.4,2421.4,0.6217]
[1749166553790,0.8301,2422.2,2421.9,4.12886771]
[1749166553952,8.2685765,2422.1,2421.9,4.12886771]
[1749166554138,6.912,2422.1,2422.0,16.55]
[1749166554341,8.26777299,2422.1,2422.0,16.55]
[1749166554541,7.88708526,2422.1,2422.0,4.67881915]
[1749166554775,7.88708526,2422.1,2422.0,16.55]
[1749166554973,8.26778284,2422.1,2421.8,4.12909751]
[1749166555136,0.8301,2421.9,2421.5,4.12957601]
[1749166555338,1.35573281,2421.8,2421.7,16.0]
[1749166555572,0.97508526,2421.8,2421.7,20.12933063]
[1749166555780,7.88608526,2421.8,2421.7,20.67933063]
[1749166556448,0.8301,2421.9,2421.8,4.67916012]
[1749166556649,8.71501895,2421.9,2421.8,4.67916012]
[1749166556853,8.71501895,2421.9,2421.8,0.55]
[1749166557278,9.09527398,2421.9,2421.8,20.67916012]
[1749166557449,8.71501895,2421.9,2421.8,20.67916012]
[1749166557785,8.71501895,2421.9,2421.8,20.12916012]
[1749166558391,8.71501895,2421.9,2421.8,16.0]
[1749166558551,8.71501895,2421.9,2421.8,20.12916012]
[1749166558993,7.7411,2421.9,2421.8,20.12916012]
[1749166559191,8.71501895,2421.9,2421.8,20.12916012]